bitfinex-derivatives/quotes_SOLF0:USTF0_20250626
["timestamp","ask_amount","ask_price","bid_price","bid_amount"]
[1750937775402,35.58,143.63,143.6,6.9605]
[1750937775604,35.58,143.63,143.58,6.52067758]
[1750937775809,35.58,143.63,143.59,6.52067758]
[1750937776314,9.19341111,143.62,143.6,6.9606]
[1750937782814,6.9603,143.61,143.59,6.961]
[1750937783011,2.23331111,143.62,143.59,6.961]
[1750937783411,14.21113115,143.61,143.59,6.961]
[1750937783614,9.19361111,143.61,143.59,6.961]
[1750937788620,6.9603,143.61,143.59,6.961]
[1750937788818,9.19361111,143.61,143.59,6.961]
[1750937790020,2.23331111,143.61,143.57,8.75398869]
[1750937790224,2.23331111,143.59,143.57,6.52067758]
[1750937790619,2.23331111,143.58,143.57,6.52067758]
[1750937790815,2.23331111,143.58,143.56,6.52067758]
[1750937791822,9.19541111,143.58,143.56,6.9625]
[1750937792212,2.23331111,143.58,143.55,6.52067758]
[1750937792924,44.71491111,143.59,143.55,8.75398869]
[1750937793619,37.75331111,143.59,143.55,8.75398869]
[1750937793831,37.75331111,143.59,143.56,6.52067758]
[1750937794123,37.75331111,143.59,143.58,6.9618]
[1750937796318,35.52,143.59,143.58,6.9618]
[1750937804225,44.71481111,143.59,143.57,13.48257758]
[1750937804426,44.71481111,143.59,143.57,6.9619]
[1750937804830,9.19511111,143.58,143.56,6.9625]
[1750937805128,35.52,143.59,143.55,6.52067758]
[1750937805324,2.23331111,143.57,143.54,6.52067758]
[1750937805921,2.23331111,143.57,143.55,6.9629]
[1750937807226,2.23331111,143.57,143.56,6.9627]
[1750937807430,9.19541111,143.58,143.56,6.9627]
[1750937812335,9.19551111,143.57,143.55,6.963]
[1750937813134,2.23331111,143.57,143.55,6.963]
[1750937813426,2.23331111,143.56,143.55,6.963]
[1750937813621,2.23331111,143.58,143.54,8.75398869]
[1750937813839,44.71471111,143.59,143.55,2.23331111]
[1750937814331,44.71471111,143.59,143.57,6.962]
[1750937818443,2.23331111,143.58,143.57,6.962]
[1750937819244,9.19531111,143.58,143.54,2.23331111]
[1750937819748,9.19531111,143.58,143.55,6.9631]
[1750937819944,2.23331111,143.57,143.55,6.9631]
[1750937820148,9.19561111,143.57,143.55,6.9631]
[1750937821848,2.23331111,143.57,143.55,6.9631]
[1750937822553,9.19571111,143.57,143.55,6.9631]
[1750937822757,9.19571111,143.57,143.54,6.9634]
[1750937822952,35.52,143.59,143.54,6.9634]
[1750937823159,9.19681111,143.55,143.51,13.58617758]
[1750937823355,2.23331111,143.54,143.51,13.58617758]
[1750937823553,6.9635,143.55,143.53,6.9639]
[1750937823754,2.23331111,143.55,143.51,15.81948869]
[1750937824950,2.23331111,143.55,143.53,6.9637]
[1750937825743,2.23331111,143.55,143.54,6.9637]
[1750937826158,11.93667087,143.57,143.52,8.75398869]
[1750937826352,2.23331111,143.56,143.53,8.75398869]
[1750937826549,9.19581111,143.57,143.55,6.963]
[1750937829955,2.23331111,143.56,143.55,6.963]
[1750937831749,2.23331111,143.57,143.56,6.9627]
[1750937833564,9.19551111,143.57,143.56,6.9627]
[1750937833765,14.17008362,143.57,143.55,6.963]
[1750937833951,2.23331111,143.56,143.55,6.963]
[1750937836165,2.23331111,143.57,143.56,6.9624]
[1750937845162,9.19551111,143.57,143.55,6.963]
[1750937845362,2.23331111,143.57,143.54,6.52067758]
[1750937846570,2.23331111,143.57,143.56,6.9627]
[1750937846769,7.2119859,143.57,143.56,6.9627]
[1750937847067,14.1741859,143.57,143.55,6.963]
[1750937847271,2.23331111,143.56,143.54,6.52067758]
[1750937847473,2.23547517,143.55,143.54,6.52067758]
[1750937847675,2.23547517,143.55,143.54,13.48387758]
[1750937847973,2.23547517,143.55,143.53,6.52067758]
[1750937848575,2.23547517,143.55,143.54,6.9637]
[1750937850778,2.23548307,143.55,143.54,6.9637]
[1750937867503,7.20639324,143.55,143.54,6.9637]
[1750937871101,7.20639324,143.55,143.5,6.52067758]
[1750937871313,2.23665305,143.51,143.48,6.52067758]
[1750937871498,2.23665305,143.5,143.48,6.52067758]
[1750937871697,2.23709836,143.5,143.48,6.52067758]
[1750937872199,2.23709836,143.49,143.48,6.52067758]
[1750937872398,2.23709836,143.49,143.46,42.5695]
[1750937872399,2.23709836,143.49,143.46,49.09017758]
[1750937872594,2.23709836,143.48,143.46,49.09017758]
[1750937872803,2.23709836,143.48,143.47,6.9671]
[1750937872999,2.23709836,143.48,143.46,13.75017758]
[1750937873199,2.23709836,143.49,143.46,7.2295]
[1750937874502,2.23709836,143.49,143.48,6.9666]
[1750937875203,2.23709836,143.5,143.49,6.9661]
[1750937875605,35.24,143.51,143.47,2.23709836]
[1750937875807,2.23709836,143.52,143.51,6.9651]
[1750937876307,2.23709836,143.52,143.49,6.9658]
[1750937876505,2.23709836,143.5,143.49,6.9658]
[1750937880503,2.23709836,143.5,143.48,6.9663]
[1750937880911,2.23709836,143.5,143.46,9.46659836]
[1750937881312,2.23709836,143.5,143.46,15.98727594]
[1750937882112,2.23709836,143.5,143.49,6.9661]
[1750937882911,11.89018768,143.53,143.47,8.75777594]
[1750937883111,2.23709836,143.52,143.47,6.52067758]
[1750937883415,2.23709836,143.51,143.47,8.75777594]
[1750937884513,2.23709836,143.51,143.5,6.9653]
[1750937896219,42.2039,143.54,143.47,8.75777594]
[1750937896416,2.23709836,143.51,143.48,6.52067758]
[1750937896810,2.23709836,143.51,143.5,6.9656]
[1750937897017,2.23709836,143.52,143.48,6.52067758]
[1750937897317,2.23709836,143.52,143.48,8.75777594]
[1750937897525,40.17462382,143.54,143.48,8.75777594]
[1750937897816,2.23709836,143.52,143.48,8.75777594]
[1750937898216,2.23709836,143.52,143.51,6.9651]
[1750937910324,9.20209836,143.52,143.5,6.9654]
[1750937910633,2.23709836,143.51,143.47,35.26]
[1750937910937,2.23709836,143.49,143.46,7.2295]
[1750937911126,2.23709836,143.49,143.48,6.9662]
[1750937912528,6.9655,143.51,143.48,6.9662]
[1750937912833,2.23709836,143.5,143.48,6.9662]
[1750937913630,6.9655,143.51,143.49,6.9661]
[1750937913832,2.23709836,143.5,143.49,6.9661]
[1750937920540,2.23709836,143.51,143.5,6.9656]
[1750937920728,7.17483789,143.51,143.5,6.9656]
[1750937925841,14.13993789,143.51,143.49,6.9659]
[1750937926032,9.20219836,143.51,143.49,6.9659]
[1750937926840,2.23709836,143.5,143.49,6.9659]
[1750937930047,6.9661,143.49,143.48,6.52067758]
[1750937930250,9.20319836,143.49,143.46,13.48777758]
[1750937930551,2.23709836,143.47,143.46,13.48777758]
[1750937931546,2.23709836,143.47,143.46,6.9671]
[1750937931748,2.23709836,143.48,143.46,6.9671]
[1750937931948,2.23709836,143.48,143.47,6.9671]
[1750937932350,2.23709836,143.49,143.47,6.9671]
[1750937932553,2.23709836,143.49,143.48,6.9666]
[1750937932747,196.3353802,143.5,143.47,6.52067758]
[1750937932748,198.57247856,143.5,143.47,6.52067758]
[1750937933942,196.3353802,143.5,143.47,8.75777594]
[1750937934148,161.1753802,143.5,143.48,6.52067758]
[1750937934551,161.1753802,143.5,143.49,6.9661]
[1750937937655,601.78,143.59,143.49,2.23709836]
[1750937937960,2.23709836,143.55,143.51,2.23709836]
[1750937938163,2.23709836,143.55,143.51,8.75777594]
[1750937938358,2.23709836,143.55,143.54,6.9633]
[1750937942768,2.23709836,143.57,143.53,2.23709836]
[1750937943062,2.23709836,143.59,143.55,2.23709836]
[1750937945067,9.19849836,143.59,143.56,6.9626]
[1750937947170,9.19849836,143.59,143.57,6.9621]
[1750937949370,7.20225227,143.61,143.57,2.23709836]
[1750937949565,2.23709836,143.61,143.57,2.23709836]
[1750937949768,37.29709836,143.62,143.58,2.23709836]
[1750937950073,44.25719836,143.62,143.58,2.23709836]
[1750937950467,9.19769836,143.61,143.58,2.23709836]
[1750937950673,6.9606,143.61,143.57,2.23709836]
[1750937950869,2.23709836,143.6,143.57,2.23709836]
[1750937951176,2.23709836,143.6,143.58,6.9618]
[1750937951969,9.19769836,143.61,143.59,6.9612]
[1750937952271,6.9606,143.61,143.59,6.9612]
[1750937952674,35.06,143.62,143.59,6.9612]
[1750937953568,6.9603,143.61,143.59,6.9612]
[1750937953772,6.9603,143.61,143.58,6.9615]
[1750937955176,6.9603,143.61,143.59,6.9612]
[1750937959576,42.0202,143.62,143.55,3.49017285]
[1750937959775,45.51037285,143.62,143.55,3.49017285]
[1750937960477,35.06,143.62,143.55,120.94524629]
[1750937961072,35.06,143.62,143.57,3.49017285]
[1750937961274,3.49017285,143.64,143.57,38.55017285]
[1750937961979,10.44927285,143.64,143.61,6.9598]
[1750937962879,6.9594,143.63,143.61,6.9598]
[1750937963084,6.9594,143.63,143.6,6.9605]
[1750937963485,6.9599,143.62,143.6,6.9605]
[1750937964578,6.9596,143.63,143.61,6.9603]
[1750937966478,6.9596,143.63,143.6,6.9605]
[1750937967184,6.9596,143.63,143.61,6.9603]
[1750937967886,6.9596,143.63,143.6,6.9605]
[1750937970489,6.9596,143.63,143.61,6.9603]
[1750937972490,3.49017285,143.64,143.6,6.9605]
[1750937972991,6.9598,143.62,143.6,6.9605]
[1750937973988,6.9596,143.63,143.6,6.9605]
[1750937974184,6.9596,143.63,143.61,6.9602]
[1750937974390,2.23336015,143.62,143.61,6.9602]
[1750937974781,6.9591,143.64,143.61,6.9602]
[1750937975083,2.23336015,143.63,143.61,6.9602]
[1750937975587,2.23336015,143.63,143.62,6.9598]
[1750937976687,2.23336015,143.63,143.57,35.06]
[1750937976888,2.23336015,143.62,143.57,37.29336015]
[1750937977990,9.19356015,143.62,143.57,37.29336015]
[1750937979693,9.19356015,143.62,143.59,6.961]
[1750937980493,9.19356015,143.62,143.6,6.9608]
[1750937983186,9.19356015,143.62,143.59,6.961]
[1750937985390,9.19356015,143.62,143.6,6.9607]
[1750937988896,9.19286015,143.63,143.61,6.9603]
[1750937989094,2.23336015,143.63,143.61,6.9603]
[1750937990092,2.23336015,143.63,143.62,6.9598]
[1750937990297,7.26929381,143.63,143.62,6.9598]
[1750937991289,5.03593366,143.63,143.62,6.9598]
[1750937991997,207.33729157,143.65,143.63,6.9591]
[1750937992197,5.03734132,143.64,143.63,6.9591]
[1750937992396,9.44491979,143.64,143.63,6.9591]
[1750937992994,11.67827994,143.64,143.63,6.9591]
[1750937996000,11.67827994,143.64,143.62,6.9596]
[1750937996298,5.03734132,143.63,143.62,6.9596]
[1750937998199,2.23336015,143.64,143.62,6.9596]
[1750937998799,9.19226015,143.64,143.62,6.9596]
[1750937998991,2.23336015,143.64,143.63,6.9593]
[1750937999191,7.27879286,143.64,143.6,2.23336015]
[1750937999398,2.23336015,143.64,143.6,2.23336015]
[1750937999803,2.23336015,143.64,143.62,6.9594]
[1750938000693,9.19226015,143.64,143.62,6.9594]
[1750938001001,2.23336015,143.64,143.62,6.9594]
[1750938001190,14.23255427,143.63,143.59,6.52067758]
[1750938001388,2.23336015,143.6,143.59,6.52067758]
[1750938001589,11.69077401,143.6,143.55,6.52067758]
[1750938001801,2.23336015,143.58,143.54,8.75403773]
[1750938002299,2.23336015,143.58,143.57,6.9622]
[1750938002606,9.97669199,143.58,143.57,6.9622]
[1750938003401,5.29125303,143.58,143.57,6.9622]
[1750938004305,7.52461318,143.58,143.57,6.9622]
[1750938004507,12.20797894,143.58,143.56,6.9624]
[1750938004704,7.52461318,143.57,143.56,6.9624]
[1750938005798,7.52461318,143.57,143.55,6.963]
[1750938006005,2.23336015,143.56,143.55,6.963]
[1750938006503,2.23336015,143.56,143.52,2.23336015]
[1750938006504,2.23336015,143.56,143.52,6.52067758]
[1750938006700,2.23336015,143.54,143.52,6.52067758]
[1750938006900,2.23336015,143.54,143.52,13.48487758]
[1750938007306,2.23336015,143.54,143.52,6.9642]
[1750938008209,10.45708872,143.55,143.52,6.9642]
[1750938008512,10.45708872,143.55,143.53,6.9642]
[1750938008711,6.9637,143.54,143.5,48.78377758]
[1750938008900,6.9637,143.54,143.51,6.9648]
[1750938009400,6.9637,143.54,143.5,2.4225]
[1750938010202,6.9643,143.53,143.51,6.9649]
[1750938010401,3.49358872,143.55,143.5,2.4225]
[1750938010803,6.9639,143.54,143.51,6.9649]
[1750938011004,6.9639,143.54,143.5,2.4225]
[1750938012111,3.49358872,143.55,143.52,6.9647]
[1750938012501,6.9633,143.55,143.52,6.9647]
[1750938012700,8.13840647,143.57,143.5,2.4225]
[1750938012903,3.49358872,143.57,143.5,2.4225]
[1750938013204,3.49358872,143.57,143.54,6.9634]
[1750938013604,3.49358872,143.57,143.55,6.963]
[1750938013814,3.49358872,143.57,143.5,2.4225]
[1750938015415,8.71342004,143.57,143.56,6.9627]
[1750938015915,3.49358872,143.57,143.56,6.9627]
[1750938016117,8.71342004,143.57,143.56,6.9627]
[1750938016418,5.21264282,143.58,143.57,6.9622]
[1750938016921,5.21264282,143.59,143.58,6.9618]
[1750938017217,38.41358872,143.6,143.58,6.9618]
[1750938017817,45.37458872,143.6,143.57,6.962]
[1750938018217,45.37458872,143.6,143.53,3.49358872]
[1750938018420,45.37458872,143.6,143.57,6.9618]
[1750938019221,45.37458872,143.6,143.58,6.9616]
[1750938019620,43.62506394,143.6,143.58,6.9616]
[1750938020322,50.58596394,143.6,143.58,6.9616]
[1750938020619,45.37448872,143.6,143.58,6.9616]
[1750938021014,34.92,143.6,143.59,6.9613]
[1750938021215,40.1496685,143.6,143.59,6.9613]
[1750938021725,34.92,143.6,143.59,6.9613]
[1750938021921,5.22924379,143.61,143.6,6.9608]
[1750938022120,5.22924379,143.62,143.55,38.41358872]
[1750938022326,38.41358872,143.63,143.56,2.3251]
[1750938022516,5.22888157,143.62,143.56,2.3251]
[1750938022824,45.37318872,143.63,143.56,2.3251]
[1750938023020,5.22887931,143.62,143.56,2.3251]
[1750938023223,45.37318872,143.63,143.56,2.3251]
[1750938023422,5.22904345,143.62,143.6,6.9604]
[1750938023622,45.37318872,143.63,143.6,6.9604]
[1750938023824,5.22904119,143.62,143.6,6.9604]
[1750938024024,45.37318872,143.63,143.6,6.9604]
[1750938024224,5.22945161,143.62,143.6,6.9604]
[1750938024426,45.37318872,143.63,143.6,6.9604]
[1750938024626,5.22921057,143.62,143.6,6.9604]
[1750938024829,15.08803434,143.63,143.6,6.9604]
[1750938025030,5.22921057,143.62,143.6,6.9604]
[1750938025329,15.08803434,143.63,143.6,6.9604]
[1750938025630,12.18928546,143.62,143.6,6.9604]
[1750938025937,6.9599,143.62,143.6,6.9604]
[1750938026428,15.08803434,143.63,143.6,6.9604]
[1750938026631,5.24774403,143.62,143.6,6.9604]
[1750938026823,15.08803434,143.63,143.6,6.9604]
[1750938027022,5.24774403,143.62,143.6,6.9604]
[1750938027224,15.08803434,143.63,143.6,6.9604]
[1750938027417,5.24793083,143.62,143.6,6.9604]
[1750938027621,6.9598,143.62,143.6,6.9604]
[1750938035735,8.12843434,143.63,143.6,6.9604]
[1750938035940,5.25641867,143.62,143.6,6.9604]
[1750938036142,8.12843434,143.63,143.6,6.9604]
[1750938036440,5.2564176,143.62,143.6,6.9604]
[1750938036643,10.45328872,143.63,143.6,6.9604]
[1750938036838,5.25646173,143.62,143.6,6.9604]
[1750938037039,10.45328872,143.63,143.6,6.9604]
[1750938037245,5.25668212,143.62,143.61,6.9603]
[1750938037753,5.25668212,143.62,143.56,10.56648872]
[1750938038048,6.9599,143.62,143.6,6.9605]
[1750938038250,9.1933161,143.62,143.6,6.9605]
[1750938039454,2.2334161,143.62,143.6,6.9605]
[1750938042651,9.1932161,143.62,143.6,6.9605]
[1750938043058,2.2334161,143.61,143.6,6.9605]
[1750938043959,9.1937161,143.61,143.59,6.961]
[1750938044250,2.2334161,143.6,143.55,2.2334161]
[1750938044453,2.2334161,143.58,143.54,2.2334161]
[1750938044757,2.2334161,143.58,143.57,6.9619]
[1750938045344,2.2334161,143.58,143.56,6.9624]
[1750938045657,2.2334161,143.58,143.54,2.2334161]
[1750938046251,6.9615,143.59,143.57,6.962]
[1750938047857,5.26713322,143.58,143.57,6.962]
[1750938048058,12.22893322,143.58,143.56,6.9626]
[1750938048263,6.9618,143.58,143.56,6.9626]
[1750938048867,6.9615,143.59,143.57,6.9622]
[1750938049162,38.35153157,143.6,143.53,41.38067758]
[1750938049353,5.26699908,143.59,143.53,41.38067758]
[1750938049557,45.31273157,143.6,143.57,6.962]
[1750938049759,5.26699908,143.59,143.57,6.962]
[1750938049961,45.31273157,143.6,143.57,6.962]
[1750938050158,5.26699908,143.59,143.57,6.962]
[1750938050458,45.31273157,143.6,143.57,6.962]
[1750938050756,12.22844543,143.59,143.57,6.962]
[1750938050958,6.9614,143.59,143.57,6.962]
[1750938051160,6.9614,143.59,143.58,6.9618]
[1750938051361,12.22849114,143.59,143.58,6.9618]
[1750938051552,5.26709114,143.59,143.58,6.9618]
[1750938052561,12.22839114,143.59,143.57,6.962]
[1750938052759,6.9613,143.59,143.57,6.962]
[1750938053462,6.9618,143.58,143.55,6.9631]
[1750938054565,6.9623,143.57,143.55,6.9631]
[1750938055063,6.9623,143.57,143.54,6.9635]
[1750938055257,6.9623,143.57,143.53,41.38067758]
[1750938056063,6.9623,143.57,143.55,6.963]
[1750938057567,6.962,143.58,143.56,6.9627]
[1750938064968,6.962,143.58,143.55,6.963]
[1750938065374,5.26816197,143.57,143.55,6.963]
[1750938065673,6.962,143.58,143.55,6.963]
[1750938065877,5.26813574,143.57,143.54,6.52067758]
[1750938066173,6.962,143.58,143.54,6.52067758]
[1750938066474,5.26806383,143.57,143.54,6.52067758]
[1750938066677,6.962,143.58,143.56,6.9625]
[1750938066865,5.26806383,143.57,143.56,6.9625]
[1750938069975,6.962,143.58,143.56,6.9625]
[1750938073078,6.9616,143.59,143.56,2.23447181]
[1750938073279,5.26128607,143.58,143.56,2.23447181]
[1750938073481,37.09447181,143.6,143.56,2.23447181]
[1750938073683,5.24538256,143.59,143.57,6.9618]
[1750938073872,44.05547181,143.6,143.57,6.9618]
[1750938074172,5.24527526,143.59,143.57,6.9618]
[1750938074372,44.05547181,143.6,143.57,6.9618]
[1750938074571,5.2453868,143.59,143.57,6.9618]
[1750938074771,44.05547181,143.6,143.57,6.9618]
[1750938074973,5.2453868,143.59,143.57,6.9618]
[1750938075173,44.05547181,143.6,143.58,6.9617]
[1750938075373,5.24550318,143.59,143.58,6.9617]
[1750938077679,5.24550318,143.59,143.57,6.9622]
[1750938077875,44.05547181,143.6,143.57,6.9622]
[1750938078081,5.2456891,143.59,143.57,6.9622]
[1750938078279,44.05547181,143.6,143.57,6.9622]
[1750938078479,5.24581748,143.59,143.57,6.9622]
[1750938078668,44.05547181,143.6,143.57,6.9622]
[1750938078872,7.48028929,143.59,143.56,6.9625]
[1750938079073,12.13917965,143.58,143.54,2.23447181]
[1750938079274,5.24581748,143.57,143.54,2.23447181]
[1750938079471,9.19657181,143.58,143.55,6.9631]
[1750938079672,5.2465339,143.57,143.54,2.23447181]
[1750938079869,9.19657181,143.58,143.54,2.23447181]
[1750938080073,5.25870563,143.57,143.56,6.9627]
[1750938080289,7.49317744,143.57,143.53,8.75514939]
[1750938080479,2.23447181,143.57,143.55,6.9629]
[1750938083387,9.19657181,143.58,143.56,6.9627]
[1750938083576,5.25951356,143.57,143.54,2.23447181]
[1750938083776,9.19657181,143.58,143.54,2.23447181]
[1750938083977,5.25951356,143.57,143.55,6.9629]
[1750938084174,9.19657181,143.58,143.55,6.9629]
[1750938084378,5.26004087,143.57,143.55,6.9629]
[1750938084578,5.26004087,143.56,143.55,6.9629]
[1750938088188,5.26004087,143.56,143.54,6.9635]
[1750938088492,5.25132693,143.55,143.54,6.9635]
[1750938091277,7.48579874,143.55,143.54,6.9635]
[1750938094495,5.25132693,143.55,143.54,6.9635]
[1750938096094,2.23447181,143.56,143.54,6.9635]
[1750938097597,2.23447181,143.56,143.55,6.9632]
[1750938097894,7.47223486,143.56,143.55,6.9632]
[1750938099195,5.23776305,143.56,143.55,6.9632]
[1750938099396,7.47223486,143.56,143.55,6.9632]
[1750938099996,5.23776305,143.56,143.55,6.9632]
[1750938100395,5.23718204,143.56,143.55,6.9632]
[1750938100584,12.19998204,143.56,143.54,6.9634]
[1750938100789,9.19727181,143.56,143.54,6.9634]
[1750938101508,9.19727181,143.56,143.53,13.47318787]
[1750938101710,2.23447181,143.54,143.52,6.50948787]
[1750938101910,2.23447181,143.53,143.51,6.50948787]
[1750938102205,2.23447181,143.53,143.52,6.9645]
[1750938102504,5.23723463,143.53,143.51,6.50948787]
[1750938102802,2.23447181,143.55,143.51,8.74395968]
[1750938103007,9.8804866,143.54,143.51,8.74395968]
[1750938103206,2.23447181,143.55,143.54,6.9637]
[1750938103409,12.11240073,143.55,143.54,6.9637]
[1750938108116,9.87792892,143.55,143.54,6.9637]
[1750938108812,12.11240073,143.55,143.54,6.9637]
[1750938109514,7.47052376,143.55,143.54,6.9637]
[1750938110016,5.23605195,143.55,143.54,6.9637]
[1750938112222,7.47052376,143.55,143.54,6.9637]
[1750938117025,5.23605195,143.55,143.54,6.9637]
[1750938121626,2.23518499,143.55,143.52,6.50948787]
[1750938122225,2.23518499,143.55,143.53,6.9642]
[1750938122520,41.723,143.56,143.53,6.9642]
[1750938122734,7.4731585,143.55,143.53,6.9642]
[1750938123020,4.5928,143.62,143.54,2.23518499]
[1750938123224,2.23518499,143.6,143.55,2.23518499]
[1750938123419,9.88225707,143.59,143.55,2.23518499]
[1750938123621,5.23681636,143.58,143.57,6.9619]
[1750938124324,5.23705148,143.58,143.57,6.9619]
[1750938126423,5.23705148,143.58,143.56,6.9625]
[1750938126729,5.23644506,143.57,143.56,6.9625]
[1750938126923,7.47055871,143.57,143.54,13.47288787]
[1750938127125,2.23411365,143.55,143.54,6.9634]
[1750938127426,6.964,143.54,143.52,6.9643]
[1750938127629,2.23411365,143.53,143.52,6.9643]
[1750938130029,2.23411365,143.53,143.5,41.20948787]
[1750938130030,2.23411365,143.53,143.51,6.965]
[1750938130230,3.4940581,143.54,143.51,6.965]
[1750938131026,2.3989,143.57,143.5,34.7]
[1750938131232,12.98610649,143.56,143.5,41.20948787]
[1750938131422,9.49204839,143.55,143.5,41.20948787]
[1750938131623,9.49215583,143.54,143.5,41.20948787]
[1750938131830,3.4940581,143.56,143.5,41.20948787]
[1750938132032,9.49155156,143.55,143.5,41.20948787]
[1750938132231,9.49155156,143.54,143.5,41.20948787]
[1750938132533,3.4940581,143.56,143.5,41.20948787]
[1750938132732,9.49094639,143.55,143.54,6.9635]
[1750938132933,9.49094639,143.55,143.5,41.20948787]
[1750938133136,10.4568581,143.56,143.5,41.20948787]
[1750938133335,9.49134404,143.55,143.53,6.9639]
[1750938133532,10.4568581,143.56,143.53,6.9639]
[1750938133834,9.47391067,143.55,143.53,6.9639]
[1750938134037,10.4568581,143.56,143.54,6.9637]
[1750938135636,10.4568581,143.56,143.53,6.9639]
[1750938135936,11.94929454,143.55,143.53,6.9639]
[1750938136238,6.9633,143.55,143.53,6.9639]
[1750938136443,6.9637,143.54,143.52,6.9646]
[1750938136935,6.9635,143.55,143.52,6.9646]
[1750938137333,6.9635,143.55,143.53,6.9639]
[1750938139642,45.1570581,143.56,143.53,6.9639]
[1750938139942,45.1570581,143.56,143.54,6.9637]
[1750938141143,10.4570581,143.56,143.54,6.9637]
[1750938147548,6.9632,143.55,143.53,6.9639]
[1750938150249,9.19866046,143.55,143.53,6.9639]
[1750938150547,2.23546046,143.55,143.53,6.9639]
[1750938150852,2.23546046,143.55,143.54,6.9637]
[1750938151753,2.23546046,143.58,143.54,6.50948787]
[1750938152252,2.23546046,143.58,143.56,6.9624]
[1750938152752,9.19726046,143.58,143.56,6.9624]
[1750938155051,2.23546046,143.57,143.56,6.9624]
[1750938155249,2.23546046,143.57,143.55,6.9629]
[1750938155652,2.23546046,143.56,143.55,6.9629]
[1750938156258,6.9623,143.57,143.55,6.9629]
[1750938158866,6.9623,143.57,143.54,6.9636]
[1750938159558,6.963,143.56,143.53,6.9639]
[1750938159765,3.49241017,143.56,143.53,6.9639]
[1750938160364,6.9634,143.55,143.53,6.9639]
[1750938161957,6.9639,143.54,143.51,6.50948787]
[1750938162259,6.9639,143.54,143.5,41.20948787]
[1750938162566,6.9639,143.54,143.52,6.9644]
[1750938164064,6.9639,143.54,143.5,41.20948787]
[1750938164065,11.43711559,143.55,143.5,41.20948787]
[1750938164265,6.9635,143.55,143.5,41.20948787]
[1750938164770,6.9635,143.55,143.52,6.9644]
[1750938165165,6.9635,143.55,143.53,6.9642]
[1750938165772,6.9638,143.54,143.5,41.20948787]
[1750938166963,6.9638,143.54,143.51,6.9651]
[1750938167572,10.45621017,143.54,143.51,6.9651]
[1750938169170,6.9642,143.53,143.51,6.9651]
[1750938174778,10.45641017,143.54,143.51,6.9651]
[1750938175279,10.45641017,143.54,143.52,6.9646]
[1750938178383,2.23592923,143.53,143.52,6.9646]
[1750938182581,9.20012923,143.53,143.52,6.9646]
[1750938182777,2.23592923,143.53,143.5,6.50948787]
[1750938182979,2.23592923,143.51,143.5,6.50948787]
[1750938183289,2.23592923,143.51,143.49,6.50948787]
[1750938183580,9.20152923,143.5,143.49,6.50948787]
[1750938183788,9.20152923,143.5,143.48,6.50948787]
[1750938183981,2.23592923,143.49,143.48,6.50948787]
[1750938185082,2.23592923,143.49,143.47,13.47618787]
[1750938185586,2.23592923,143.5,143.47,6.50948787]
[1750938185982,36.85592923,143.51,143.47,8.7454171]
[1750938187677,36.85592923,143.51,143.5,6.9656]
[1750938187988,9.20082923,143.52,143.5,6.9656]
[1750938188288,6.9649,143.52,143.5,6.9656]
[1750938195797,6.9649,143.52,143.49,6.9659]
[1750938196095,10.45959086,143.51,143.48,6.50948787]
[1750938196293,10.45959086,143.51,143.47,8.87998787]
[1750938196692,10.45959086,143.51,143.48,6.9662]
[1750938196992,6.9657,143.5,143.48,6.9662]
[1750938197209,3.49439086,143.51,143.47,6.967]
[1750938197395,10.46049086,143.49,143.47,6.967]
[1750938198491,3.49439086,143.49,143.47,6.967]
[1750938199094,3.49439086,143.49,143.48,6.9666]
[1750938199993,6.9659,143.5,143.48,6.9666]
[1750938200193,10.45979086,143.51,143.47,6.50948787]
[1750938201006,10.45979086,143.51,143.48,6.9663]
[1750938203605,10.45979086,143.51,143.49,6.966]
[1750938206302,7.94183412,143.53,143.47,6.50948787]
[1750938206511,44.03661392,143.54,143.5,6.50948787]
[1750938206710,41.604,143.54,143.51,6.9648]
[1750938207117,41.604,143.54,143.5,6.50948787]
[1750938207318,41.604,143.54,143.52,6.9644]
[1750938207714,34.64,143.54,143.5,6.50948787]
[1750938207914,3.49439086,143.51,143.48,6.50948787]
[1750938208116,4.44723455,143.52,143.47,6.50948787]
[1750938208420,3.49439086,143.51,143.49,6.9661]
[1750938208727,10.45929086,143.52,143.49,6.9661]
[1750938210020,38.13439086,143.54,143.49,6.50948787]